Workbook

Sheet Kezdés
B1: A SABLON ISMERTETÉSE
B2: Ezzel az ügyfelek nyereségességének elemzésé használható sablonnal nyomon követheti az Ügyféltevékenységek, Értékesítés költsége és Egyéb költségek.
B3: A táblázatokban megadhatja a kívánt információkat, például a cégnevet, a dátum és más részleteket.
B4: A képleteket tartalmazó cellákban és az Összegző metrikák táblázatban található értékeket a sablon automatikusan kiszámítja, és frissíti a diagramot.
B5: Megjegyzés:
B6: Az ÜGYFÉLEK NYERESÉGESSÉGE munkalap A oszlopában további útmutatást olvashat. Ez a szöveg szándékosan van elrejtve. Ha törölni szeretné a szöveget, jelölje ki az A oszlopot, majd nyomja le a DELETE billentyűt. Ha láthatóvá szeretné tenni a szöveget, jelölje ki az A oszlopot, majd módosítsa a betűszínt.
B7: Ha többet szeretne megtudni a munkalapon lévő táblázatokról, nyomja le a SHIFT+F10 billentyűkombinációt egy táblázaton belül, válassza a TÁBLÁZAT parancsot, majd a HELYETTESÍTŐ SZÖVEG elemet.

Sheet Ügyfelek nyereségessége
A1: Ezen a munkalapon létrehozhat egy, az ügyfelek nyereségességének elemzése. Ennek az oszlopnak a celláiban a munkalap használatát megkönnyítő útmutatás olvasható. Első lépésként nyomja le a Le nyílbillentyűt.
A2: A jobbra lévő cellában adhatja meg a cég neve. | B2: Cég neve
A3: A jobbra lévő cellában szerepel a munkalap címe. | B3: Ügyfelek nyereségességének elemzése
A4: A jobbra lévő cellában adhatja meg a dátum. | B4: Dátum
A5: A jobbra lévő cellában egy tipp szerepel. | B5: A szürke cellákat a sablon kiszámítja Ön helyett. Ezekbe nem kell írnia semmit.
A6: A jobbra lévő cellában kezdődő Ügyféltevékenységek táblázatban adhatja meg az adatokat. A következő utasítás az A12 cellában található. | B6: Ügyféltevékenységek: | C6: Szegmensnév 1 | D6: Szegmensnév 2 | E6: Szegmensnév 3 | F6: Összesen
B7: Aktív ügyfelek száma – Időszak kezdete | C7: 5 | D7: 8 | E7: 8 | F7: =SUM(C7:E7) -> 21
B8: Hozzáadott ügyfelek száma | C8: 2 | D8: 4 | E8: 4 | F8: =SUM(C8:E8) -> 10
B9: Elveszített/megszűnt ügyfelek száma | C9: -1 | D9: -2 | E9: -2 | F9: =SUM(C9:E9) -> -5
B10: Aktív ügyfelek száma – Időszak vége | C10: =SUBTOTAL(109,Ügyféltevékenységek[Szegmensnév 1]) -> 6 | D10: =SUBTOTAL(109,Ügyféltevékenységek[Szegmensnév 2]) -> 10 | E10: =SUBTOTAL(109,Ügyféltevékenységek[Szegmensnév 3]) -> 10 | F10: =SUBTOTAL(109,Ügyféltevékenységek[Összesen]) -> 26
A12: A jobbra kezdődő Nyereségesség elemzése táblázatban adhatja meg az adatokat. A következő utasítás az A16 cellában található. | B12: Nyereségesség elemzése: | C12: Szegmensnév 1 | D12: Szegmensnév 2 | E12: Szegmensnév 3 | F12: Összesen
B13: Árbevétel szegmensenként | C13: 1,500,000.00 Ft | D13: 1,800,000.00 Ft | E13: 2,500,000.00 Ft | F13: =SUM(NyereségességElemzése[[#This Row],[Szegmensnév 1]:[Szegmensnév 3]]) -> 5,800,000.00 Ft
B14: Súlyozás | C14: =+C13/$F$13 -> 26% | D14: =+D13/$F$13 -> 31% | E14: =+E13/$F$13 -> 43% | F14: =SUM(NyereségességElemzése[[#This Row],[Szegmensnév 1]:[Szegmensnév 3]]) -> 100%
A16: A jobbra lévő cellában kezdődő Értékesítés költsége táblázatban adhatja meg az adatokat. A következő utasítás az A23 cellában található. | B16: Értékesítés költsége: | C16: Szegmensnév 1 | D16: Szegmensnév 2 | E16: Szegmensnév 3 | F16: Összesen
B17: Folyamatos szolgáltatási és támogatási költségek | C17: 1,000,000.00 Ft | D17: 1,400,000.00 Ft | E17: 1,400,000.00 Ft | F17: =SUM(C17:E17) -> 3,800,000.00 Ft
B18: Egyéb közvetlen ügyfélköltségek | C18: 200,000.00 Ft | D18: 100,000.00 Ft | E18: 100,000.00 Ft | F18: =SUM(C18:E18) -> 400,000.00 Ft
B19: Értékesítés teljes költsége | C19: =SUM(C17:C18) -> 1,200,000.00 Ft | D19: =SUM(D17:D18) -> 1,500,000.00 Ft | E19: =SUM(E17:E18) -> 1,500,000.00 Ft | F19: =SUM(F17:F18) -> 4,200,000.00 Ft
B20: Bruttó nyereség | C20: =+C13-C19 -> 300,000.00 Ft | D20: =+D13-D19 -> 300,000.00 Ft | E20: =+E13-E19 -> 1,000,000.00 Ft | F20: =+F13-F19 -> 1,600,000.00 Ft
B21: Súlyozás | C21: =MAX(0, MIN(1,C20/$F$20)) -> 19% | D21: =MAX(0, MIN(1,D20/$F$20)) -> 19% | E21: =MAX(0, MIN(1,E20/$F$20)) -> 63% | F21: =SUM(C21:E21) -> 100%
A23: A jobbra lévő cellában kezdődő Egyéb költségek táblázatban adhatja meg az adatokat. A következő utasítás az A31 cellában található. | B23: Egyéb költségek: | C23: Szegmensnév 1 | D23: Szegmensnév 2 | E23: Szegmensnév 3 | F23: Összesen
B24: Ügyfélfelvásárlás | C24: 105,000.00 Ft | D24: 120,000.00 Ft | E24: 235,000.00 Ft | F24: =SUM(EgyébKöltségek[[#This Row],[Szegmensnév 1]:[Szegmensnév 3]]) -> 460,000.00 Ft
B25: Ügyfélmarketing | C25: 150,000.00 Ft | D25: 125,000.00 Ft | E25: 275,000.00 Ft | F25: =SUM(C25:E25) -> 550,000.00 Ft
B26: Ügyfélmegszűnés | C26: 80,000.00 Ft | D26: 190,000.00 Ft | E26: 140,000.00 Ft | F26: =SUM(C26:E26) -> 410,000.00 Ft
B27: Egyéb ügyfélköltségek összesen | C27: =SUM(C24:C26) -> 335,000.00 Ft | D27: =SUM(D24:D26) -> 435,000.00 Ft | E27: =SUM(E24:E26) -> 650,000.00 Ft | F27: =SUM(F24:F26) -> 1,420,000.00 Ft
B28: Ügyfélnyereség szegmensenként | C28: =+C20-C27 -> -35,000.00 Ft | D28: =+D20-D27 -> -135,000.00 Ft | E28: =+E20-E27 -> 350,000.00 Ft | F28: =SUM(C28:E28) -> 180,000.00 Ft
B29: Súlyozás | C29: =MAX(0,MIN(1, C28/$F$28)) -> 0% | D29: =MAX(0,MIN(1, D28/$F$28)) -> 0% | E29: =MAX(0,MIN(1, E28/$F$28)) -> 100% | F29: =SUM(C29:E29) -> 100%
A31: A jobbra lévő cellában kezdődő Összegző metrikák táblázat automatikusan frissül. A következő utasítás az A37 cellában található. | B31: Összegző metrikák: | C31: Szegmensnév 1 | D31: Szegmensnév 2 | E31: Szegmensnév 3 | F31: Trend
B32: Átlagos költség felvásárolt ügyfelenként | C32: =+C24/C8 -> 52,500.00 Ft | D32: =+D24/D8 -> 30,000.00 Ft | E32: =+E24/E8 -> 58,750.00 Ft
B33: Átlagos költség megszűnt ügyfelenként | C33: =-C26/C9 -> 80,000.00 Ft | D33: =-D26/D9 -> 95,000.00 Ft | E33: =-E26/E9 -> 70,000.00 Ft
B34: Átlagos marketingköltség aktív ügyfelenként | C34: =+C26/Ügyféltevékenységek[[#Totals],[Szegmensnév 1]] -> 13,333.33 Ft | D34: =+D25/Ügyféltevékenységek[[#Totals],[Szegmensnév 2]] -> 12,500.00 Ft | E34: =+E25/Ügyféltevékenységek[[#Totals],[Szegmensnév 3]] -> 27,500.00 Ft
B35: Átlagos nyereség (veszteség) ügyfelenként | C35: =+C29/Ügyféltevékenységek[[#Totals],[Szegmensnév 1]] -> 0.00 Ft | D35: =+D28/Ügyféltevékenységek[[#Totals],[Szegmensnév 2]] -> -13,500.00 Ft | E35: =+E28/Ügyféltevékenységek[[#Totals],[Szegmensnév 3]] -> 35,000.00 Ft
A37: A jobbra lévő cellában az összegző metrikák ügyfélszegmensenként megjelenítő csoportosított oszlop diagram található. | B37: Ebben a cellában az összegző metrikákat ügyfélszegmensenként megjelenítő csoportosított oszlop diagram található.
